Cogmind - Beta 14 @@@ ROGUE MODE // 2024.10.08 @ 21:50:49 Player: puppuppit Result: Destroyed by as-40676 with Assembled Blade Performance ------------- Evolutions (0) 0 Regions Visited (2) 400 Robots Destroyed (82) 410 Value Destroyed (857) 857 Prototype IDs (3) 60 Alien Tech Used (0) 0 Bonus (22) 22 TOTAL SCORE: 1749 Bonus ------- High Alert Combat Kills 22 Cogmind --------- Core Integrity 0/250 Matter 300/300 Energy 73/100 System Corruption 7% Temperature Cool (0) Movement Rolling (80) Location -10/Mines Parts ------- > --- POWER (1) -------- (None) > --- PROPULSION (2) --- Wheel Wheel > --- UTILITY (2) ------ Small Storage Unit > --- WEAPON (2) ------- Improved EM Shotgun Particle Gun > --- INVENTORY (8) ---- Wheel Wheel Hover Unit Hover Unit Hover Unit Hover Unit Combat Airjet Hacking Suite Peak State ------------ > --- POWER ------------ Light Ion Engine > --- PROPULSION ------- Wheel Wheel > --- UTILITY ---------- Medium Storage Unit Improved Targeting Computer > --- WEAPON ----------- Improved EM Shotgun Improved EM Shotgun > --- INVENTORY -------- Wheel Wheel Hover Unit Hover Unit Hacking Suite Improved EM Shotgun Improved EM Shotgun Beam Cannon Beam Cannon Beam Cannon [Rating: 13] Favorites ----------- Power Light Ion Engine Engine Light Ion Engine Propulsion Wheel Wheel Wheel Utility Small Storage Unit Storage Small Storage Unit Processor Improved Targeting Computer Weapon Improved EM Shotgun Energy Gun Improved EM Shotgun Ballistic Gun Light Assault Rifle Build | -11 -10 -10 ------- Run | Yrd Mat Min Slots Evolved . | . . . Power . | . . . Propulsion . | . . . Utility . | . . . Weapon . | . . . Parts Attached 41 | 8 20 13 Power 7 | 1 3 3 Engine 7 | 1 3 3 Core . | . . . Reactor . | . . . Propulsion 17 | 3 8 6 Treads . | . . . Leg . | . . . Wheel 17 | 3 8 6 Hover . | . . . Flight . | . . . Utility 7 | 1 5 1 Device . | . . . Storage 5 | 1 3 1 Processor 2 | . 2 . Hackware . | . . . Protection . | . . . Artifact . | . . . Weapon 10 | 3 4 3 Energy Gun 9 | 2 4 3 Energy Cannon . | . . . Ballistic Gun 1 | 1 . . Ballistic Cannon . | . . . Launcher . | . . . Special Weapon . | . . . Impact Weapon . | . . . Slashing Weapon . | . . . Piercing Weapon . | . . . Special Melee Weapon . | . . . Unidentified Prototypes 1 | . 1 . Corrupted Parts 1 | . . 1 System Corruption 3 | . . 3 Parts Lost 7 | . 1 6 Power 1 | . . 1 Propulsion 2 | . 1 1 Utility 1 | . . 1 Weapon 3 | . . 3 Highest Loss Streak 2 | . 1 2 To Critical Strikes . | . . . Average Slot Usage (%) 94 | . 95 90 Engine 12 | . 12 11 Wheel 27 | . 27 26 Storage 14 | . 14 14 Processor 11 | . 11 11 Energy Gun 24 | . 24 25 Ballistic Gun 2 | . 3 . Peak Build Rating 13 | 6 13 13 Average Rating 10 | 5 11 11 On Entrance 6 | . 6 13 Naked Turns . | . . . Heaviest Build 23 | 13 23 16 Greatest Support 20 | 20 20 20 Greatest Overweight (x) 1 | . 1 1 Average Overweight (x) . | . . . Largest Inventory Capacity 10 | 8 10 8 Average Capacity 8 | 7 8 8 Most Carried 10 | 7 10 8 Average Carried 7 | 2 8 7 Final Capacity 8 | 8 8 8 Final Carried 8 | 7 8 8 Class Distribution -------------------- 56% | Mutant 43% | Scavenger-Mutant Dominant Class ---------------- Mutant | -10/Materials Scavenger-Mutant | -10/Mines Resources | -11 -10 -10 ----------- Run | Yrd Mat Min Matter Collected 661 | 293 243 125 Remotely . | . . . Salvage Created 2879 | 218 1730 931 Parts 173 | 18 115 40 Haulers Intercepted 2 | . 2 . Recyclers Shooed 5 | . 4 1 Parts Field Recycled . | . . . Retrieved Matter . | . . . Parts Self-Destructed . | . . . Prevented . | . . . Kills | -11 -10 -10 ------- Run | Yrd Mat Min Combat Hostiles Destroyed 23 | . 16 7 Guns 21 | . 14 7 AOE 2 | . 2 . Classes Destroyed 11 | 3 6 2 Worker 24 | 2 13 9 Builder 12 | . 10 2 Tunneler 7 | 5 2 . Hauler 2 | . 2 . Recycler 12 | 1 5 6 Operator 2 | . 2 . Watcher 3 | . 3 . Swarmer 6 | . 6 . Grunt 12 | . 10 2 Demolisher 1 | . . 1 Assembled 3 | . . 3 Best Kill Streak 7 | 6 7 7 Combat Bots Only 5 | . 5 2 Max Kills in Single Turn 2 | 1 2 2 Gunslinging . | . . . Exploded 1 | . 1 . Melee . | . . . Uniques/NPCs Destroyed 1 | . . 1 YI-UF0 (-10/Mines) Combat | -11 -10 -10 -------- Run | Yrd Mat Min Hostile Shots Fired 81 | . 57 24 Missed 24 | . 17 7 Damage Taken 1084 | 8 420 656 Core 276 | . 115 161 Absorbed by Shields . | . . . Regen/Repaired (Parts) 62 | . 62 . Core Remaining (%) 100 | 100 . . Volleys Fired 153 | 23 82 48 Largest 2 | 2 2 2 Hottest 90 | 70 90 90 Shots Fired 288 | 46 161 81 Gun 288 | 46 161 81 Cannon . | . . . Launcher . | . . . Special . | . . . Kinetic 56 | 23 33 . Thermal 7 | 7 . . Explosive . | . . . Electromagnetic 225 | 16 128 81 Robot Hit Streak 10 | 6 10 10 Robot Miss Streak 4 | 2 4 4 Penetration Max . | . . . Secondary Targets . | . . . Shots Hit Robots 188 | 26 107 55 Core Hits 119 | 12 69 38 Critical Kills . | . . . Critical Parts Destroyed . | . . . Critical Strikes 2 | 1 1 . Burn 1 | 1 . . Corrupt 1 | . 1 . Melee Attacks . | . . . Impact . | . . . Slashing . | . . . Piercing . | . . . Sneak Attacks . | . . . Combat Hostiles . | . . . Follow-up Attacks . | . . . Damage Inflicted 3213 | 334 1769 1110 Guns 2621 | 252 1543 826 Cannons . | . . . Explosions 589 | 82 223 284 Melee . | . . . Ramming 3 | . 3 . Kinetic 261 | 124 137 . Thermal 614 | 107 223 284 Explosive . | . . . Electromagnetic 2335 | 103 1406 826 Impact . | . . . Slashing . | . . . Piercing . | . . . Highest Corruption 7 | . . 7 Average Corruption 6 | . . 6 Corruption Purged . | . . . Corruption Blocked . | . . . Effects 2 | . . 2 Parts Rejected 1 | . . 1 Data Loss (major) 1 | . . 1 Overload Shots . | . . . Overflow Damage 22 | . 8 14 Projectiles . | . . . Explosions 22 | . 8 14 Melee . | . . . Knockbacks . | . . . Impact . | . . . Kinetic . | . . . Secondary . | . . . Self-Inflicted Damage 234 | 8 41 185 Shots 9 | 1 1 7 Rammed 1 | . 1 . Targets Rammed 1 | . 1 . Kicked . | . . . Crushed . | . . . Highest Temperature 180 | 110 104 180 Average Temperature 38 | 41 26 56 Received Heat Transfer 126 | . 117 9 Siege Activations . | . . . Robots Corrupted 1 | . 1 . Combat Hostiles . | . . . Parts Fried 7 | 1 5 1 Impact Corruptions . | . . . Robots Melted . | . . . Combat Hostiles . | . . . Parts Melted 1 | 1 . . Heat Transferred 648 | 148 200 300 Parts Sabotaged . | . . . Parts Stolen . | . . . Parts Stripped . | . . . Power Chain Reactions 17 | 2 6 9 Alert | -11 -10 -10 ------- Run | Yrd Mat Min Peak Influence 559 | 40 559 353 Initial 155 | . 26 155 Average 286 | 18 318 286 Maximum Alert Level 2 | . 2 1 Low Security (%) 20 | 100 13 14 Level 1 64 | . 63 85 Level 2 14 | . 22 . Level 3 . | . . . Level 4 . | . . . Level 5 . | . . . High Security . | . . . Max Security . | . . . Squads Dispatched 5 | . 5 . Investigation 4 | . 4 . Extermination . | . . . Reinforcement 1 | . 1 . Assault . | . . . Garrison . | . . . Intercept . | . . . Searches Triggered . | . . . Construction Impeded . | . . . Haulers Reinforced . | . . . Active Scanning Responses . | . . . Cargo Convoy Interrupts . | . . . Stealth | -11 -10 -10 --------- Run | Yrd Mat Min Distress Signals 3 | . 3 . Communications Jammed . | . . . Distress Signals . | . . . Times Spotted 38 | . 23 15 Peak Tracking Total 8 | . 8 3 Tactical Retreats 8 | . 3 5 Traps | -11 -10 -10 ------- Run | Yrd Mat Min Traps Triggered 1 | . 1 . Indirectly . | . . . Trap Hack Attempts . | . . . Triggered . | . . . Disarmed . | . . . Reprogrammed . | . . . Reused . | . . . Traps Extracted . | . . . Installed . | . . . Triggered . | . . . Machines | -11 -10 -10 ---------- Run | Yrd Mat Min Machines Disabled 2 | . 1 1 Max in Single Turn 1 | . 1 1 Machines Repaired . | . . . Machines Dismantled . | . . . Machines Sabotaged . | . . . Overloaded Fab Kills . | . . . Hacking | -11 -10 -10 --------- Run | Yrd Mat Min Machines Accessed 10 | . 9 1 Terminals 8 | . 7 1 Fabricators . | . . . Repair Stations 1 | . 1 . Recycling Units 1 | . 1 . Scanalyzers . | . . . Garrison Access . | . . . Total Hacks 33 | . 28 5 Successful 20 | . 17 3 Failed 12 | . 10 2 Catastrophic 1 | . 1 . Database Lockouts 1 | . 1 . Manual 18 | . 13 5 Terminals 28 | . 23 5 Fabricators . | . . . Repair Stations 3 | . 3 . Recycling Units 2 | . 2 . Scanalyzers . | . . . Garrison Access . | . . . Terminal Hacks 16 | . 13 3 Robot Analysis 8 | . 5 3 Prototype ID Bank 1 | . 1 . Level Access Points 1 | . 1 . Branch Access Points 1 | . 1 . Terminal Index 1 | . 1 . Unreport Threat 1 | . 1 . Hauler Manifests 1 | . 1 . Zone Layout 2 | . 2 . Fabricator Hacks . | . . . Repair Station Hacks 2 | . 2 . Scan Component 1 | . 1 . Repair 1 | . 1 . Recycling Unit Hacks 2 | . 2 . Retrieve Components 2 | . 2 . Scanalyzer . | . . . Garrison Access Hacks . | . . . Unauthorized Hacks . | . . . Terminals . | . . . Fabricators . | . . . Repair Stations . | . . . Recycling Units . | . . . Scanalyzers . | . . . Garrison Access . | . . . Data Cores Recovered . | . . . Used . | . . . Hacking Detections 8 | . 7 1 Full Trace Events 6 | . 5 1 Feedback Events . | . . . Feedback Blocked . | . . . Robot Schematics Acquired . | . . . Robots Built . | . . . Authchips . | . . . Time . | . . . Total Robot Build Rating . | . . . Part Schematics Acquired . | . . . Parts Built . | . . . Authchips . | . . . Time . | . . . Total Part Build Rating . | . . . Parts Repaired 1 | . 1 . Time 51 | . 51 . Parts Recycled . | . . . Recycled Matter . | . . . Retrieved Matter . | . . . Retrieved Components 1 | . 1 . Parts Scanalyzed . | . . . Part Schematics Acquired . | . . . Parts Damaged . | . . . Bothacking | -11 -10 -10 ------------ Run | Yrd Mat Min Used RIF Installer . | . . . Robots Hacked . | . . . Non-combat . | . . . Combat . | . . . Robot Hacks Applied . | . . . Relay Couplers Released . | . . . Fabnet Peak Effective % . | . . . Robots Rewired . | . . . Allies Hacked . | . . . Hacks Repelled . | . . . Allies | -11 -10 -10 -------- Run | Yrd Mat Min Total Allies . | . . . Largest Group . | . . . Highest-Rated Group . | . . . Highest-Rated Ally . | . . . Total Orders . | . . . Ally Attacks . | . . . Total Damage . | . . . Kills . | . . . Allies Corrupted . | . . . Allies Melted . | . . . Intel | -11 -10 -10 ------- Run | Yrd Mat Min Robot Analysis Total 8 | . 5 3 Derelict Logs Recovered . | . . . Drone Launches . | . . . Drone Recoveries . | . . . Exploration | -11 -10 -10 ------------- Run | Yrd Mat Min Turns Passed 1763 | 144 1171 448 Spaces Moved 1427 | 79 1011 337 Core 1 | 1 . . Treads . | . . . Legs . | . . . Wheels 1426 | 78 1011 337 Hover . | . . . Flight . | . . . Fastest Speed 50 | 50 80 80 Average Speed 80 | 79 80 80 Slowest Speed 95 | 80 95 95 Overloaded Moves . | . . . Propulsion Burnouts . | . . . Robots Hopped . | . . . Cave-ins Triggered . | . . . Exploration Rate (%) 49 | 4 95 49 Regions Visited 2 Branch Regions 1 Pre-discovered Areas . | . . . Known Exits Taken 1 | . 1 . Unknown Exits Taken 1 | 1 . . Scrap Searched . | . . . Spaces Dug . | . . . Terrain Destroyed 63 | 5 22 36 Melee . | . . . Projectile . | . . . AOE 63 | 5 22 36 Terrain Rammed . | . . . Walls Destroyed . | . . . Machines Disabled . | . . . Actions | -11 -10 -10 --------- Run | Yrd Mat Min Total 1765 | 115 1218 432 Wait 89 | . 62 27 Move 1425 | 78 1010 337 Hop . | . . . Pick Up 23 | 5 17 1 Fast Attach 17 | 7 6 4 Attach 2 | . . 2 Detach 2 | 1 1 . Swap 22 | 1 14 7 Drop 31 | . 25 6 Fire 153 | 23 82 48 Melee . | . . . Ram 1 | . 1 . Kick . | . . . Crush . | . . . Escape Stasis . | . . . Rewire . | . . . Trap . | . . . Miscellaneous . | . . . Route ------- -11/Scrapyard -10/Materials (discovered 4 exits: *Mat x3 / *Min) -10/Mines (discovered 2 exits: *Mat x2) History --------- Turn | Location | Event 18 | -11/Scrapyard | Discovered new exit (range 16) 145 | -11/Scrapyard | Entered Materials 305 | -10/Materials | Build established: Mutant 336 | -10/Materials | Central database locked down 674 | -10/Materials | Repaired Imp. EM Shotgun 683 | -10/Materials | Discovered new exit (range 10) 698 | -10/Materials | Identified exit to Mines 728 | -10/Materials | Identified exit to Materials 1077 | -10/Materials | Build established: Scavenger-Mutant 1316 | -10/Materials | Entered Mines 1318 | -10/Mines | Assembled infested the area 1353 | -10/Mines | Discovered exit to Materials (range 7) 1380 | -10/Mines | Build established: Mutant 1424 | -10/Mines | Core integrity fell below 50% 1490 | -10/Mines | Discovered exit to Materials (range 11) 1600 | -10/Mines | Core integrity fell below 20% 1600 | -10/Mines | Destroyed YI-UF0 1757 | -10/Mines | Build established: Scavenger-Mutant 1764 | -10/Mines | Destroyed by as-40676 with Assembled Blade Last Messages --------------- 01683_ Chain reaction triggered in Lgt. Ion Engine. 01683_ Welding Torch fried. 01683_ U-05 Engineer destroyed. 01689_ Acquired Corrupted Particle Gun. 01689_ Integrated Corrupted Particle Gun (+3). 01689_ Corrupted Particle Gun temporarily disabled. 01692_ Imp. Targeting Computer destroyed. 01692_ System corrupted by crushing effect (+4). 01692_ Knocked back. 01693_ as-81402 destroyed. 01697_ as-25404 destroyed. 01699_ Acquired 5 matter. 01707_ U-05 Engineer builds a Wall. 01731_ Dropped Wheel. 01734_ Extracted 10 matter. 01736_ Acquired Lgt. Ion Engine. 01737_ Acquired 10 matter. 01740_ System corrupted: Substantial component data lost. 01747_ U-05 Engineer destroyed. 01756_ System corrupted: Lgt. Ion Engine rejected. Map ----- +----------------------------------------------------+ | ??????????????????????????##### ###=#####????????? | | ?????????????????????#######""#=## %! #????????? | | ?????????????????????# ![=%%=%!=%= "* #????????? | | ?????????????????????# #####"""###%%% #????????? | | ?????????????????????# #???#######=% #????????? | | ??????????###????????# #?????????# %%= #????????? | | ?????????## #???????#"#?????????#*= #????????? | | ????????## ??????##%##????????# #????????? | | ???????## ?????### ##????????# #????????? | | ???????# ####?# # ###???????########????????? | | ???????# # #####% ##??????????????????????? | | ????????# " ## #??????????????????????? | | ???????????# #??????????????????????? | | ???????????## %## # #??????????????????????? | | ??????????## ## #####??????????????????????? | | ?????????## ## ####??????????????????????????? | | ?????????# # # #????????????????????????????? | | ?????????# # ### #????????????????????????????? | | ?????????##### # # ##???????????????????????????? | | ????????## # # # #???????????????????????????? | | ???????## # ## ### #???????????????????????????? | | ???????# ## # *## ###??????????????????????????? | | ?????### # =## #??????????????????????????? | | ?????# %= %# ##??????????????????????????? | | ?????# = !%!;########???????????????????? | | ?????# ###|%! = @a #???????????????????? | | ?????# # ##= ##### #???????????????????? | | ?????# #### # #???# #???????????????????? | | ??#### ######## ##??## #???????????????????? | | ??# T#?# #??## #???????????????????? | | ??# ##?## ##??# #???????????????????? | | ??# = ! #???#####???# *##??????????????????? | | ??# % % #?????????# # ### ##???????????? | | ??# =""" #??????????# #???????????? | | ??# % *""" #?????????# #???????????? | | ??# < %!""" #????????# #????????? | | ??# % * #????????# ####????????? | | ??#### ######???????# #??????????? | | ?????# #????????????# ?????????? | | ?????# #????????????## # ???????? | | ?????#!###########??# ??????? | | ????## % ## ### ! ??????? | | ????# #### !% ??????? | | ????# ##??# *= ## ???????? | | ????# #???# *%= "##?????????? | | ????# #???# ! !* % ##"##??????????? | | ??### ##### # %! # # ?##???????????? | | ??# ## # ####??????????????? | | ??# ## # ## ##???????????????????? | | ??# """" ######## ##?# #????????????????????? | +----------------------------------------------------+ Best States ------------- Heat Dissipation 25 Energy Generation 10 Energy Capacity 250 Matter Stores 300 Matter Capacity 300 Sight Range 16 Terrain Scan Density 10 Evasion (%) 44 Targeting Accuracy 6 Item Schematics ----------------- None Robot Schematics ------------------ None Fabricated ------------ Nothing Alien Tech Used ----------------- None Achievements -------------- None Challenges ------------ None Game ------ Seed ImprovedThermalStorm Manual? 0 Play Time 00:23:30 Cumulative 494.8 hours Start 2024.10.08 @ 21:32:35 End 2024.10.08 @ 21:50:49 Sessions 1 Manual Loads 0 Difficulty Rogue Special Mode None Game No. 198 Rogue 198 Adventurer 0 Explorer 0 Win Type - Total 4 Types 0/0/2/2/0/0/0/0/0 Lore% 48 Gallery% 76 Achievement% 66 Wizard Run 0 Options --------- Layout 0 ASCII 0 Keyboard 1 Movement Arrows Keybinds 0 Fullscreen 1 Font 12/Proggy Map View 83x54 Zoom Use 0% Tactical HUD 1 Map Filters NONE Filters NONE Steam 0 RUN: 2587d652-2f95-42e0-9c53-574843ce2570